bitfinex/quotes_BTCUSD_20260103
["timestamp","ask_amount","ask_price","bid_price","bid_amount"]
[1767459748525,0.06661786,90066.0,90062.0,0.01110346]
[1767459748888,0.01110296,90066.0,90063.0,0.01110333]
[1767459751181,0.06661784,90066.0,90063.0,0.01110333]
[1767459752499,0.06661784,90066.0,90062.0,0.01110346]
[1767459755655,0.04661784,90066.0,90062.0,0.01110346]
[1767459755786,0.0577208,90066.0,90062.0,0.01110346]
[1767459756017,0.01110296,90066.0,90062.0,0.01110346]
[1767459756781,0.01110296,90066.0,90062.0,0.06662042]
[1767459757059,0.01110296,90066.0,90063.0,0.01110333]
[1767459759001,0.06661538,90070.0,90065.0,0.01110309]
[1767459759208,0.01110247,90070.0,90067.0,0.01110284]
[1767459759382,0.01110247,90070.0,90066.0,0.01119096]
[1767459759607,0.01110247,90070.0,90066.0,0.01110296]
[1767459759808,0.01110247,90070.0,90065.0,0.06661813]
[1767459759959,0.01110247,90070.0,90065.0,0.11447796]
[1767459760557,0.01110247,90070.0,90066.0,0.04785983]
[1767459760757,0.01110235,90071.0,90068.0,0.01110272]
[1767459760986,0.03330198,90074.0,90072.0,0.04785983]
[1767459761151,0.01040671,90073.0,90070.0,0.04785983]
[1767459761356,0.0111021,90073.0,90070.0,0.01110247]
[1767459761914,0.01088024,90073.0,90070.0,0.01110247]
[1767459762229,0.01110222,90072.0,90069.0,0.01110259]
[1767459763530,0.01088024,90073.0,90069.0,0.01110259]
[1767459763928,0.01110222,90072.0,90069.0,0.01110259]
[1767459765759,0.05551053,90073.0,90072.0,8.8e-05]
[1767459766112,0.05551377,90068.0,90062.0,0.05551673]
[1767459766281,0.01110284,90067.0,90064.0,0.01110321]
[1767459766487,0.05551377,90068.0,90064.0,0.01110321]
[1767459766681,0.01110259,90069.0,90065.0,0.01110309]
[1767459766827,0.05551053,90073.0,90069.0,0.01110259]
[1767459767035,0.08237356,90074.0,90071.0,0.01110235]
[1767459767270,0.08237356,90074.0,90069.0,0.06661504]
[1767459767271,0.000999,90071.0,90069.0,0.01110259]
[1767459767481,0.000999,90071.0,90069.0,0.06661504]
[1767459767872,0.01110222,90072.0,90068.0,0.01110272]
[1767459768190,0.01110222,90072.0,90069.0,0.01110259]
[1767459768614,0.0111021,90073.0,90069.0,0.01110259]
[1767459769197,0.03330198,90074.0,90070.0,0.01110247]
[1767459769772,0.01193659,90076.0,90071.0,0.06661411]
[1767459769977,0.0666055,90083.0,90077.0,0.01110161]
[1767459770189,0.04440118,90083.0,90078.0,0.04842999]
[1767459770360,0.04440118,90083.0,90079.0,0.01101038]
[1767459770361,0.01110099,90082.0,90079.0,0.01101038]
[1767459770563,0.04440118,90083.0,90079.0,0.0109194]
[1767459770769,0.04907158,90082.0,90078.0,0.01110148]
[1767459770968,0.04440118,90083.0,90079.0,0.03581082]
[1767459771195,0.02540118,90083.0,90080.0,0.01110124]
[1767459771435,0.02540118,90083.0,90081.0,0.04785983]
[1767459771585,0.03650205,90083.0,90081.0,0.04785983]
[1767459771784,0.03650205,90083.0,90081.0,0.04686083]
[1767459772099,0.03650205,90083.0,90081.0,0.01988353]
[1767459772265,0.01110087,90083.0,90081.0,0.01988353]
[1767459772755,0.06660597,90082.0,90078.0,0.05896131]
[1767459773082,0.06651818,90082.0,90078.0,0.05896131]
[1767459774829,0.01110112,90081.0,90078.0,0.05896131]
[1767459776596,0.01110112,90081.0,90078.0,0.04785983]
[1767459777072,0.01110112,90081.0,90079.0,0.04785983]
[1767459778805,0.0616193,90082.0,90079.0,0.04785983]
[1767459779867,0.01110112,90081.0,90079.0,0.04785983]
[1767459780085,0.01110099,90082.0,90079.0,0.05896119]
[1767459780284,0.06660597,90082.0,90081.0,0.000999]
[1767459780651,0.06660597,90082.0,90079.0,0.04785983]
[1767459782392,0.06660597,90082.0,90078.0,0.01110148]
[1767459782878,0.06660597,90082.0,90078.0,0.05675051]
[1767459784338,0.05550621,90080.0,90078.0,0.04564903]
[1767459785131,0.01110112,90081.0,90078.0,0.04564903]
[1767459785556,0.01110112,90081.0,90077.0,0.01110161]
[1767459786560,0.06660597,90082.0,90077.0,0.01110161]
[1767459787001,0.01101333,90081.0,90077.0,0.01110161]
[1767459787261,0.01101333,90081.0,90077.0,0.06660932]
[1767459788905,0.01110173,90076.0,90073.0,0.01157819]
[1767459789101,0.05550985,90075.0,90073.0,0.00047609]
[1767459790284,0.05551176,90071.0,90070.0,0.0222]
[1767459792040,0.01110259,90069.0,90066.0,0.04564903]
[1767459792338,0.01110235,90071.0,90069.0,0.000999]
[1767459792683,0.01110235,90071.0,90067.0,0.07895187]
[1767459792883,0.01110235,90071.0,90067.0,0.07083401]
[1767459793156,0.01110235,90071.0,90068.0,0.01110272]
[1767459793549,0.06161484,90070.0,90068.0,0.04564903]
[1767459794200,0.05261484,90070.0,90068.0,0.04564903]
[1767459794400,0.01110247,90070.0,90068.0,0.04564903]
[1767459796986,0.01110222,90072.0,90070.0,0.000999]
[1767459797331,0.01110222,90072.0,90068.0,0.05675175]
[1767459799081,0.0111021,90073.0,90072.0,0.000999]
[1767459799526,0.0111021,90073.0,90070.0,0.01110247]
[1767459802020,0.04661222,90074.0,90070.0,0.01110247]
[1767459802836,0.0111021,90073.0,90070.0,0.01110247]
[1767459803822,0.01110222,90072.0,90069.0,0.01110259]
[1767459805274,0.06661301,90073.0,90069.0,0.01110259]
[1767459805275,0.0111021,90073.0,90072.0,0.000999]
[1767459805640,0.0111021,90073.0,90070.0,0.01110247]
[1767459806043,0.06661299,90073.0,90069.0,0.01110259]
[1767459806248,0.01110222,90072.0,90069.0,0.01110259]
[1767459808466,0.06661411,90071.0,90068.0,0.04564903]
[1767459808675,0.06661411,90071.0,90068.0,0.03753723]
[1767459809070,0.01110235,90071.0,90068.0,0.03753723]
[1767459809771,0.04581756,90073.0,90068.0,0.03753723]
[1767459809972,0.01110235,90071.0,90068.0,0.03753723]
[1767459810188,0.01110235,90071.0,90068.0,0.04863995]
[1767459813895,0.0111021,90073.0,90071.0,0.000999]
[1767459814263,0.0111021,90073.0,90069.0,0.06661558]
[1767459814465,0.06661157,90075.0,90071.0,0.01110235]
[1767459816313,0.01149001,90076.0,90073.0,0.0111021]
[1767459816314,0.06699873,90076.0,90073.0,0.0111021]
[1767459816547,0.00047608,90076.0,90073.0,0.0111021]
[1767459817352,0.06660946,90078.0,90073.0,0.0111021]
[1767459817572,0.01040441,90077.0,90073.0,0.0111021]
[1767459817772,0.06660946,90078.0,90073.0,0.0111021]
[1767459817999,0.02150602,90077.0,90073.0,0.0111021]
[1767459818199,0.01040611,90076.0,90073.0,0.0111021]
[1767459818388,0.01110161,90077.0,90073.0,0.0111021]
[1767459818590,0.01040611,90076.0,90073.0,0.0111021]
[1767459818801,0.01110161,90077.0,90073.0,0.0111021]
[1767459819106,0.01040611,90076.0,90073.0,0.0111021]
[1767459819392,0.01110161,90077.0,90073.0,0.0111021]
[1767459819552,0.01040623,90076.0,90073.0,0.0111021]
[1767459819758,0.01110161,90077.0,90073.0,0.0111021]
[1767459819998,0.01040623,90076.0,90073.0,0.0111021]
[1767459820302,0.01110161,90077.0,90073.0,0.0111021]
[1767459820475,0.01040636,90076.0,90073.0,0.0111021]
[1767459820675,0.01110161,90077.0,90073.0,0.0111021]
[1767459820857,0.01040636,90076.0,90073.0,0.0111021]
[1767459821061,0.01110161,90077.0,90073.0,0.0111021]
[1767459821261,0.01040636,90076.0,90073.0,0.0111021]
[1767459821579,0.01110161,90077.0,90073.0,0.0111021]
[1767459821778,0.01040636,90076.0,90074.0,0.05550991]
[1767459821965,0.01107613,90077.0,90076.0,0.000999]
[1767459822350,0.01107613,90077.0,90074.0,0.06661189]
[1767459822765,0.01110136,90079.0,90075.0,0.01110185]
[1767459823918,0.01010236,90079.0,90075.0,0.01110185]
[1767459824998,0.01110112,90081.0,90076.0,0.01110173]
[1767459825202,0.05260467,90084.0,90079.0,0.01110136]
[1767459825400,0.01110075,90084.0,90081.0,0.01110112]
[1767459825617,0.01110075,90084.0,90081.0,0.01010212]
[1767459825990,0.01110075,90084.0,90080.0,0.01110124]
[1767459826426,0.01110075,90084.0,90079.0,0.01110136]
[1767459826813,0.01110075,90084.0,90081.0,0.01110112]
[1767459827926,0.01110087,90083.0,90080.0,0.01110124]
[1767459830337,0.05666651,90082.0,90078.0,0.01110148]
[1767459830641,0.01110112,90081.0,90077.0,0.05550784]
[1767459831939,0.01110112,90081.0,90078.0,0.01110148]
[1767459832538,0.01110124,90080.0,90076.0,0.01110173]
[1767459832739,0.01110124,90080.0,90077.0,0.01110161]
[1767459832948,0.06570841,90081.0,90077.0,0.01110161]
[1767459833242,0.01020236,90081.0,90077.0,0.01110161]
[1767459833891,0.01110124,90080.0,90077.0,0.01110161]
[1767459834658,0.01020236,90081.0,90077.0,0.01110161]
[1767459835853,0.01110124,90080.0,90076.0,0.01110173]
[1767459836234,0.01110136,90079.0,90076.0,0.01110173]
[1767459838491,0.01110136,90079.0,90075.0,0.05550922]
[1767459838643,0.01110136,90079.0,90075.0,0.06661107]
[1767459838846,0.01110136,90079.0,90076.0,0.01110173]
[1767459840645,0.00510136,90079.0,90076.0,0.01110173]
[1767459840854,0.00510136,90079.0,90075.0,0.06661107]
[1767459841059,0.00510136,90079.0,90075.0,0.06602137]
[1767459841897,0.01110124,90080.0,90076.0,0.01110173]
[1767459842941,0.01020236,90081.0,90077.0,0.06660967]
[1767459843679,0.01110148,90078.0,90073.0,0.04765143]
[1767459843853,0.05550935,90075.0,90073.0,0.00047609]
[1767459846180,0.05550935,90075.0,90073.0,0.04765143]
[1767459846609,0.0166138,90072.0,90068.0,0.06937534]
[1767459846970,0.06561473,90072.0,90068.0,0.08047806]
[1767459847374,0.01110235,90071.0,90068.0,0.06937534]
[1767459848057,0.0111021,90073.0,90069.0,0.05551299]
[1767459848283,0.05550991,90074.0,90069.0,0.06661558]
[1767459848998,0.0111021,90073.0,90069.0,0.06661558]
[1767459849192,0.0111021,90073.0,90070.0,0.01110247]
[1767459849408,0.0111021,90073.0,90069.0,0.06661558]
[1767459850914,0.0111021,90073.0,90070.0,0.01110247]
[1767459852460,0.000999,90070.0,90069.0,0.06661558]
[1767459852791,0.01110222,90072.0,90069.0,0.06661558]
[1767459853513,0.000999,90069.0,90068.0,0.03330272]
[1767459853915,0.0111021,90073.0,90070.0,0.01110247]
[1767459855129,0.0111021,90073.0,90070.0,0.01095821]
[1767459855936,0.05261201,90074.0,90070.0,0.01095821]
[1767459856939,0.0111021,90073.0,90070.0,0.01095821]
[1767459858480,0.01110222,90072.0,90068.0,0.03330272]
[1767459859112,0.06661411,90071.0,90068.0,0.0222]
[1767459859232,0.06661529,90070.0,90065.0,0.01110309]
[1767459859430,0.01110259,90069.0,90065.0,0.01110309]
[1767459859983,0.01110259,90069.0,90066.0,0.01110296]
[1767459860188,0.01114623,90070.0,90067.0,0.01110284]
[1767459860408,0.01114623,90070.0,90066.0,0.01110296]
[1767459860808,0.01114623,90070.0,90067.0,0.01110284]
[1767459861015,4.376e-05,90070.0,90067.0,0.01110284]
[1767459861241,0.01114623,90070.0,90067.0,0.01110284]
[1767459862566,0.000999,90067.0,90066.0,0.01110296]
[1767459863068,0.01110259,90069.0,90066.0,0.01110296]
[1767459863590,0.01110259,90069.0,90064.0,0.06661912]
[1767459863776,0.06665899,90070.0,90065.0,0.01110309]
[1767459863955,0.01114623,90070.0,90065.0,0.01110309]
[1767459864265,0.01114623,90070.0,90067.0,0.01110284]
[1767459866250,0.01110259,90069.0,90066.0,0.01110296]
[1767459867287,0.04772512,90068.0,90065.0,0.02772151]
[1767459867492,0.01110259,90069.0,90065.0,0.02772151]
[1767459867940,0.01110259,90069.0,90066.0,0.01110296]
[1767459869053,0.01110259,90069.0,90066.0,0.0109587]
[1767459869589,0.01110296,90066.0,90062.0,0.01110346]
[1767459869817,0.01110296,90066.0,90063.0,0.01110333]
[1767459869970,0.01110284,90067.0,90063.0,0.01110333]
[1767459870176,0.01110259,90069.0,90063.0,0.01110333]
[1767459870177,0.01110259,90069.0,90065.0,0.01110309]
[1767459870957,0.01110259,90069.0,90065.0,0.06661816]
[1767459871166,0.01110259,90069.0,90065.0,0.01110309]
[1767459871360,0.01110272,90068.0,90065.0,0.01110309]
[1767459871723,0.06371871,90069.0,90065.0,0.01110309]
[1767459872109,0.00820531,90069.0,90066.0,0.01110296]
[1767459872429,0.00820531,90069.0,90066.0,0.01095872]
[1767459872606,0.01110272,90068.0,90065.0,0.01110309]
[1767459872752,0.00820531,90069.0,90065.0,0.01110309]
[1767459874132,0.01110272,90068.0,90064.0,0.05551607]
[1767459874356,0.01110272,90068.0,90064.0,0.06661928]
[1767459874482,0.01110284,90067.0,90064.0,0.01110321]
[1767459874687,0.01110284,90067.0,90063.0,0.01095908]
[1767459874994,0.06561768,90068.0,90064.0,0.06657502]
[1767459875545,0.01010372,90068.0,90065.0,0.01110309]
[1767459875700,0.01110296,90066.0,90062.0,0.01110346]
[1767459876124,0.01110321,90064.0,90059.0,0.05551877]
[1767459876332,0.05551455,90067.0,90058.0,0.0222]
[1767459876535,0.01110284,90067.0,90063.0,0.01110333]
[1767459876816,0.01110296,90066.0,90062.0,0.01110346]
[1767459876975,0.01110296,90066.0,90063.0,0.01110333]
[1767459877169,0.01110296,90066.0,90062.0,0.01110346]
[1767459877375,0.01110296,90066.0,90063.0,0.01110333]
[1767459877834,0.01110284,90067.0,90064.0,0.01110321]
[1767459878033,0.04574095,90066.0,90062.0,0.04065255]
[1767459878284,0.01110284,90067.0,90062.0,0.04065255]
[1767459878467,0.01110284,90067.0,90063.0,0.01095908]
[1767459878680,0.01110284,90067.0,90063.0,0.06647538]
[1767459879164,0.05551377,90068.0,90063.0,0.06647538]
[1767459879507,0.05551377,90068.0,90063.0,0.01095908]
[1767459879685,0.01110284,90067.0,90064.0,0.01110321]
[1767459880117,0.01110284,90067.0,90063.0,0.01095908]
[1767459880326,0.06661669,90068.0,90064.0,0.01110321]
[1767459880869,0.01110284,90067.0,90063.0,0.01095908]
[1767459881264,0.01110284,90067.0,90064.0,0.01110321]
[1767459881474,0.01010384,90067.0,90064.0,0.01110321]
[1767459881676,0.01110272,90068.0,90065.0,0.06661855]
[1767459881882,0.01110272,90068.0,90065.0,0.06647431]
[1767459882253,0.01110259,90069.0,90065.0,0.06647431]
[1767459882383,0.01110259,90069.0,90066.0,0.01110296]
[1767459882591,0.01110259,90069.0,90066.0,0.01095873]
[1767459885251,0.000999,90066.0,90064.0,0.01110321]
[1767459885400,0.01110284,90067.0,90064.0,0.01110321]
[1767459887293,0.05361743,90067.0,90063.0,0.01095908]
[1767459887433,0.000999,90063.0,90062.0,0.01110346]
[1767459887630,0.00091121,90063.0,90062.0,0.01110346]
[1767459888145,0.0555152,90066.0,90062.0,0.01110346]
[1767459888547,0.01110321,90064.0,90059.0,0.06662276]
[1767459888767,0.01110321,90064.0,90061.0,0.04665285]
[1767459889474,0.01110321,90064.0,90061.0,0.05775643]
[1767459894616,0.01110321,90064.0,90061.0,0.04665285]
[1767459895003,0.00610321,90064.0,90061.0,0.04665285]
[1767459895210,0.00610321,90064.0,90061.0,0.04650861]
[1767459897461,0.00014424,90063.0,90060.0,0.01095946]
[1767459897651,0.00610321,90064.0,90061.0,0.05551792]
[1767459898242,0.00610321,90064.0,90060.0,0.05761231]
[1767459898423,0.000911,90061.0,90060.0,0.05761231]
[1767459898630,0.01110333,90063.0,90060.0,0.05761231]
[1767459900441,0.01110333,90063.0,90060.0,0.05670131]
[1767459901219,0.01110395,90058.0,90048.0,0.03330493]
[1767459901399,0.06662931,90051.0,90046.0,0.01110543]
[1767459901604,0.06662931,90051.0,90046.0,0.04756026]
[1767459901605,0.06563189,90049.0,90046.0,0.04756026]
[1767459901940,0.01010606,90049.0,90046.0,0.04756026]
[1767459902286,0.01010606,90049.0,90045.0,0.03330555]
[1767459902987,0.05552576,90049.0,90045.0,0.08086581]
[1767459903211,0.05552576,90049.0,90045.0,0.03330555]
[1767459903669,0.05552576,90049.0,90045.0,0.0222]
[1767459903670,0.01110518,90048.0,90045.0,0.0222]
[1767459903991,0.01110518,90048.0,90045.0,0.03330555]
[1767459906998,0.01110531,90047.0,90044.0,0.000149]
[1767459907477,0.06663242,90047.0,90044.0,0.000149]
[1767459907880,0.04512085,90046.0,90042.0,0.03032968]
[1767459908069,0.06663242,90047.0,90042.0,0.07788994]
[1767459908268,0.01110531,90047.0,90042.0,0.07788994]
[1767459908770,0.01110531,90047.0,90044.0,0.01110568]
[1767459910792,0.00710531,90047.0,90044.0,0.01110568]
[1767459912599,0.01110543,90046.0,90043.0,0.0111058]
[1767459912809,0.06663263,90046.0,90042.0,0.08899586]
[1767459913362,0.01110543,90046.0,90043.0,0.0111058]
[1767459914844,0.0111058,90043.0,90040.0,0.0222]
[1767459915020,0.0111058,90043.0,90040.0,0.08086643]
[1767459915021,0.0121048,90043.0,90040.0,0.08086643]
[1767459915369,0.0121048,90043.0,90041.0,0.04756026]
[1767459915654,0.0111058,90043.0,90041.0,0.04756026]
[1767459915955,0.0111058,90043.0,90040.0,0.03330617]
[1767459916338,0.01110568,90044.0,90041.0,0.01110605]
[1767459916747,0.01110568,90044.0,90041.0,0.06663629]
[1767459917166,0.01110568,90044.0,90041.0,0.01110605]
[1767459917964,0.01110568,90044.0,90040.0,0.01110617]
[1767459918453,0.00710568,90044.0,90040.0,0.01110617]
[1767459919058,0.01110555,90045.0,90041.0,0.0666363]
[1767459919257,0.01110555,90045.0,90041.0,0.01110605]
[1767459922490,0.01110568,90044.0,90041.0,0.01110605]
[1767459924231,0.01110568,90044.0,90041.0,0.06663629]
[1767459925380,0.01110568,90044.0,90041.0,0.01110605]
[1767459926187,0.06663378,90045.0,90041.0,0.01110605]
[1767459926870,0.01110568,90044.0,90041.0,0.01110605]
[1767459927694,0.06663446,90044.0,90040.0,0.01110617]
[1767459928100,0.06663446,90044.0,90040.0,0.01106228]
[1767459928827,0.01110555,90045.0,90041.0,0.0666363]
[1767459929038,0.0666338,90045.0,90041.0,0.01110605]
[1767459929204,0.01110568,90044.0,90041.0,0.01110605]
[1767459929722,0.01210505,90041.0,90035.0,0.07773348]
[1767459929923,0.000999,90041.0,90038.0,0.06663852]
[1767459930123,0.01110592,90042.0,90038.0,0.06663852]
[1767459930912,0.01110592,90042.0,90039.0,0.01110629]
[1767459931451,0.01110592,90042.0,90038.0,0.06699729]
[1767459931452,0.0666363,90041.0,90038.0,0.00035877]
[1767459931654,0.06663379,90045.0,90040.0,0.01110617]
[1767459931800,0.0111058,90043.0,90040.0,0.01110617]
[1767459932009,0.01110568,90044.0,90041.0,0.04772371]
[1767459932686,0.01110568,90044.0,90041.0,0.05882976]
[1767459933583,0.01110555,90045.0,90042.0,0.01110592]
[1767459933756,0.01110555,90045.0,90042.0,0.01106203]
[1767459933960,0.03241891,90046.0,90042.0,0.01106203]
[1767459934977,0.01110555,90045.0,90042.0,0.01106203]
[1767459936025,0.01110555,90045.0,90042.0,0.05878574]
[1767459938149,0.01110555,90045.0,90042.0,0.01106203]
[1767459941649,0.05552756,90046.0,90042.0,0.01106203]
[1767459941860,0.01110555,90045.0,90042.0,0.01106203]
[1767459946405,0.01110555,90045.0,90041.0,0.01110605]
[1767459947221,0.01110568,90044.0,90041.0,0.01110605]
[1767459949360,0.06663375,90045.0,90041.0,0.01110605]
[1767459949788,0.05552756,90046.0,90041.0,0.0666357]
[1767459950021,0.05552756,90046.0,90042.0,0.01110592]
[1767459951020,0.01110555,90045.0,90042.0,0.01110592]
[1767459951179,0.01110543,90046.0,90042.0,0.01110592]
[1767459952731,0.01110555,90045.0,90041.0,0.0666357]
[1767459953101,0.01110568,90044.0,90041.0,0.05882976]
[1767459957102,0.01110555,90045.0,90041.0,0.05882976]
[1767459957857,0.01110568,90044.0,90041.0,0.05882976]
[1767459958396,0.000999,90041.0,90038.0,0.00035877]
[1767459958605,0.01210505,90041.0,90038.0,0.00035877]
[1767459958822,0.01110605,90041.0,90038.0,0.01146519]
[1767459959235,0.06663562,90042.0,90038.0,0.01146519]
[1767459959629,0.06663676,90041.0,90037.0,0.01110654]
[1767459959830,0.06663676,90041.0,90037.0,5.661e-05]
[1767459959831,0.06663747,90040.0,90037.0,5.661e-05]
[1767459960033,0.0555321,90038.0,90037.0,5.661e-05]
[1767459963744,0.0545331,90038.0,90037.0,5.661e-05]
[1767459963952,0.05553188,90039.0,90037.0,5.661e-05]
[1767459964159,0.05553188,90039.0,90037.0,6.1e-07]
[1767459964624,0.03953188,90039.0,90037.0,6.1e-07]
[1767459969770,0.05553881,90028.0,90026.0,0.04807098]
[1767459969968,0.01105177,90027.0,90026.0,0.04944571]
[1767459970516,0.06664522,90029.0,90026.0,0.04944571]
[1767459971807,0.01110753,90029.0,90027.0,0.04936197]
[1767459972531,0.0396448,90030.0,90027.0,0.04936197]
[1767459972984,0.000999,90027.0,90026.0,8.374e-05]
[1767459973321,0.05553827,90028.0,90026.0,8.374e-05]
[1767459973539,0.05554197,90022.0,90021.0,0.04936197]
[1767459973940,0.06664913,90024.0,90021.0,0.04936197]
[1767459974804,0.05554177,90023.0,90021.0,0.04936197]
[1767459975689,0.05554177,90023.0,90021.0,0.04914472]
[1767459976437,0.06664913,90024.0,90021.0,0.04914472]
[1767459976860,0.06664832,90025.0,90021.0,0.04914472]
[1767459977086,0.01110777,90027.0,90021.0,0.06025323]
[1767459977689,0.06664556,90029.0,90025.0,0.04936197]
[1767459978401,0.01110765,90028.0,90025.0,0.06046999]
[1767459980082,0.06664556,90029.0,90025.0,0.06046999]
[1767459980879,0.01110765,90028.0,90025.0,0.06046999]
[1767459981089,0.01110765,90028.0,90025.0,0.04936197]
[1767459982323,0.05553926,90027.0,90025.0,0.04936197]
[1767459984427,0.000999,90025.0,90021.0,0.01110851]
[1767459984587,0.01110814,90024.0,90019.0,0.1160141]
[1767459984792,0.01110827,90023.0,90019.0,0.1160141]
[1767459985192,0.01110827,90023.0,90020.0,0.04936197]
[1767459985812,0.06664998,90023.0,90020.0,0.04936197]
[1767459986127,0.05554251,90022.0,90020.0,0.04936197]
[1767459986315,0.05547352,90022.0,90020.0,0.04936197]
[1767459991253,0.05547352,90022.0,90020.0,0.04914471]
[1767459992856,0.05547352,90022.0,90020.0,0.04814571]
[1767459994469,0.06664998,90023.0,90022.0,0.000999]
[1767459995145,0.01110814,90024.0,90020.0,0.05925435]
[1767459995146,0.01110814,90024.0,90021.0,0.01110851]
[1767459995832,0.01117569,90025.0,90024.0,0.000999]
[1767459996237,0.01117569,90025.0,90022.0,0.05670834]
[1767459997676,0.01017669,90025.0,90022.0,0.05670834]
[1767459997969,0.06182464,90026.0,90022.0,0.05670834]
[1767459998174,0.06182464,90026.0,90022.0,0.11224997]
[1767459998878,0.06182464,90026.0,90022.0,0.05670834]
[1767459999083,0.01110802,90025.0,90022.0,0.05670834]
[1767459999878,0.01110802,90025.0,90022.0,0.11225022]
[1767460000454,0.01110802,90025.0,90022.0,0.05670834]
[1767460002592,0.01110814,90024.0,90020.0,0.01110864]
[1767460002790,0.01210739,90022.0,90019.0,0.01110876]
[1767460002908,0.06665079,90022.0,90018.0,0.01110888]
[1767460003515,0.01110839,90022.0,90018.0,0.1122529]
[1767460003717,0.01110839,90022.0,90019.0,0.01110876]
[1767460003944,0.06665001,90023.0,90019.0,0.11225212]
[1767460004336,0.01110827,90023.0,90020.0,0.01110864]
[1767460004570,0.01110814,90024.0,90020.0,0.06665149]
[1767460005197,0.01110814,90024.0,90020.0,0.01110864]
[1767460005602,0.06075671,90025.0,90020.0,0.01110864]
[1767460006001,0.01110814,90024.0,90021.0,0.04559995]
[1767460006403,0.01110814,90024.0,90021.0,0.03745621]
[1767460010676,0.06664925,90024.0,90021.0,0.03745621]
[1767460011293,0.06664925,90024.0,90021.0,0.03645721]
[1767460011887,0.01110827,90023.0,90020.0,0.01110864]
[1767460012122,0.01110827,90023.0,90019.0,0.05670871]
[1767460012352,0.0666508,90022.0,90019.0,0.04559995]
[1767460012973,0.0666508,90022.0,90019.0,0.05670871]
[1767460013183,0.01110839,90022.0,90019.0,0.05670871]
[1767460013331,0.06286608,90024.0,90019.0,0.05670871]
[1767460013941,0.01110827,90023.0,90019.0,0.05670871]
[1767460014510,0.01110839,90022.0,90019.0,0.05670871]
[1767460014710,0.06665078,90022.0,90019.0,0.04559995]
[1767460015140,0.01110827,90023.0,90019.0,0.11225204]
[1767460016348,0.01110827,90023.0,90019.0,0.11225242]
[1767460017393,0.01010927,90023.0,90020.0,0.04559995]
[1767460017905,0.01010927,90023.0,90020.0,0.05670859]
[1767460018354,0.000999,90020.0,90019.0,0.01110876]
[1767460018494,0.01210764,90020.0,90017.0,0.01110901]
[1767460018857,0.01110864,90020.0,90017.0,0.05670896]
[1767460019193,0.01110851,90021.0,90018.0,0.05670883]
[1767460020270,0.06665148,90021.0,90018.0,0.04559995]
[1767460021009,0.05265148,90021.0,90018.0,0.04559995]
[1767460021204,0.05554382,90019.0,90018.0,0.04559995]
[1767460021844,0.06375999,90021.0,90018.0,0.0373094]
[1767460022156,0.06375999,90021.0,90018.0,0.02620138]
[1767460022466,0.01110839,90022.0,90018.0,0.08174579]
[1767460022665,0.01110839,90022.0,90018.0,0.08174575]
[1767460022901,0.22214107,90033.0,90015.0,0.0222]
[1767460022902,0.01110753,90029.0,90026.0,0.05553951]
[1767460023171,0.0104116,90028.0,90026.0,0.04516683]
[1767460023409,0.0104116,90027.0,90026.0,0.04516683]
[1767460025020,0.0104116,90027.0,90026.0,0.04416783]
[1767460025453,0.06664741,90026.0,90023.0,0.04509916]
[1767460025668,0.0667271,90026.0,90023.0,0.04509916]
[1767460028338,0.01110827,90023.0,90019.0,0.01110876]
[1767460028535,0.01110839,90022.0,90020.0,0.04509916]
[1767460028742,0.01110827,90023.0,90020.0,0.04509916]
[1767460029361,0.01110839,90022.0,90020.0,0.04509916]
[1767460030095,0.06665089,90022.0,90020.0,0.04509916]
[1767460033885,0.01110851,90021.0,90018.0,0.01110888]
[1767460034092,0.01110864,90020.0,90017.0,0.04509916]
[1767460034300,0.05554382,90019.0,90017.0,0.04509916]
[1767460034473,0.05554568,90016.0,90014.0,0.02224]
[1767460034679,0.05454668,90016.0,90014.0,0.02224]
[1767460034885,0.01110901,90017.0,90011.0,0.02224]
[1767460034886,0.0111095,90013.0,90011.0,0.02224]
[1767460035354,0.01110938,90014.0,90011.0,0.03334975]
[1767460036509,0.06276531,90015.0,90011.0,0.02224]
[1767460036719,0.00721863,90015.0,90011.0,0.08889821]
[1767460038319,0.00721863,90015.0,90011.0,0.03791721]
[1767460038656,0.00721863,90015.0,90009.0,0.04329133]
[1767460039152,0.01110938,90014.0,90011.0,0.01110975]
[1767460039537,0.0111095,90013.0,90010.0,0.01110987]
[1767460040056,0.00721863,90015.0,90011.0,0.01110975]
[1767460040355,0.01110938,90014.0,90010.0,0.01110987]
[1767460042687,0.01110938,90014.0,90009.0,0.05620916]
[1767460042688,0.0111095,90013.0,90009.0,0.05620916]
[1767460043301,0.06665748,90013.0,90009.0,0.01111]
[1767460043849,0.06665748,90013.0,90009.0,0.05620916]
[1767460044070,0.02965748,90013.0,90009.0,0.05620916]
[1767460044905,0.04076698,90013.0,90009.0,0.05620916]
[1767460045787,0.01110962,90012.0,90009.0,0.05620916]
[1767460047124,0.056549,90009.0,90008.0,0.000149]
[1767460047280,0.06665899,90011.0,90008.0,0.000149]
[1767460047460,0.06665899,90011.0,90008.0,0.00010512]
[1767460050029,0.01110975,90011.0,90008.0,0.01121524]
[1767460051745,0.01110975,90011.0,90008.0,0.00010512]
[1767460051954,0.05054914,90011.0,90008.0,0.00010512]
[1767460052971,0.06165889,90011.0,90008.0,0.00010512]
[1767460054354,0.06165889,90011.0,90007.0,0.01111024]
[1767460054961,0.01110987,90010.0,90007.0,0.01111024]
[1767460055799,0.01111,90009.0,90005.0,0.03335049]
[1767460056026,0.000999,90007.0,90005.0,0.02224]
[1767460056371,0.01111012,90008.0,90005.0,0.03335049]
[1767460056569,0.06666041,90009.0,90005.0,0.03335049]
[1767460056832,0.06666134,90008.0,90005.0,0.02224]
[1767460056970,0.06666134,90008.0,90003.0,0.01134713]
[1767460057312,0.01111024,90007.0,90003.0,0.01130325]
[1767460057508,0.01111037,90006.0,90003.0,0.01130325]
[1767460057807,0.01111024,90007.0,90003.0,0.01130325]
[1767460058516,0.01111012,90008.0,90005.0,0.04750144]
[1767460058859,0.01111012,90008.0,90004.0,0.0666636]
[1767460059526,0.01111,90009.0,90003.0,1e-08]
[1767460059822,0.01111037,90006.0,90003.0,1e-08]
[1767460060475,0.05555308,90004.0,90003.0,1e-08]
[1767460061089,0.06666222,90006.0,90003.0,1e-08]
[1767460061809,0.05555284,90005.0,90003.0,1e-08]
[1767460062224,0.05476335,90005.0,90003.0,1e-08]
[1767460066284,0.05467556,90005.0,90003.0,1e-08]
[1767460067389,0.01767556,90005.0,90003.0,1e-08]
[1767460075127,0.06666222,90006.0,90003.0,1e-08]
[1767460075308,0.05555284,90005.0,90003.0,1e-08]
[1767460076188,0.01111111,90000.0,89997.0,0.02119339]
[1767460076376,0.01111111,90000.0,89997.0,0.08786227]
[1767460076725,0.01111111,90000.0,89997.0,0.02119339]
[1767460077630,0.05555493,90001.0,89998.0,0.04750144]
[1767460078839,0.01111111,90000.0,89998.0,0.04750144]
[1767460079653,0.01111086,90002.0,89998.0,0.05861279]
[1767460080257,0.05555673,89999.0,89997.0,0.02119339]
[1767460080766,0.05555673,89999.0,89997.0,0.02019439]
[1767460081334,0.06666707,90000.0,89997.0,0.02019439]
[1767460081736,0.06566807,90000.0,89997.0,0.02019439]
[1767460082149,0.01111098,90001.0,89997.0,0.01111148]